Cogmind - Beta 12 @@@ ROGUE MODE // 2023.09.08 @ 00:54:46 Player: monistgf Result: Destroyed by G-67 Veteran with Field Laser Performance ------------- Evolutions (7) 3500 Regions Visited (15) 3000 Robots Destroyed (77) 385 Value Destroyed (2923) 2923 Prototype IDs (6) 120 Alien Tech Used (1) 200 Bonus (2121) 2121 TOTAL SCORE: 12249 Bonus ------- Triggered Max Security 1000 Follower Combat Kills 321 Entered DSFs 500 Aligned with FarCom 300 Cogmind --------- Core Integrity 0/1300 Matter 39/300 Energy 100/100 System Corruption 16% Temperature Cool (1) Movement Flying (45) Location -3/Quarantine Parts ------- > --- POWER (2) -------- (None) > --- PROPULSION (6) --- Impulse Thruster Array > --- UTILITY (9) ------ (None) > --- WEAPON (4) ------- (None) > --- INVENTORY (5) ---- Micro Antimatter Reactor Antigrav System Phase Redirector Peak State ------------ > --- POWER ------------ Light Antimatter Reactor Micro Antimatter Reactor > --- PROPULSION ------- Myomer Leg Improved Antigrav System Improved Antigrav System Backup Propulsion VII Antigrav Array > --- UTILITY ---------- Advanced Cryofiber Web Small Battery Backup Plating VII Backup Plating VII > --- WEAPON ----------- Gamma Rifle Gamma Rifle Backup Laser VII Backup Laser VII > --- INVENTORY -------- Heart of Steel Nova Cannon [Rating: 114] Favorites ----------- Power Heavy Deuterium Engine Engine Heavy Deuterium Engine Power Core Light Nuclear Core Reactor Particle Reactor Propulsion Improved Titanium Leg Treads Improved Medium Treads Leg Improved Titanium Leg Wheel Wheel Hover Unit Improved Antigrav System Flight Unit Nuclear Pulse Array Utility Hardlight Generator Device Hardlight Generator Storage Large Storage Unit Processor Improved Signal Interpreter Hackware Hacking Suite Protection Improved Medium Armor Plating Artifact Phase Redirector Weapon Gauss Rifle Energy Gun EM Pulse Gun Energy Cannon Plasma Cannon Ballistic Gun Gauss Rifle Ballistic Cannon Antimatter Cannon Launcher Advanced EMP Blaster Special Weapon Mining Laser Impact Weapon Heavy Flail Slashing Weapon Molecular Scythe Build | -11 -10 -10 -10 -9 -8 -8 -7 -7 -7 -6 -5 -5 -4 -3 -3 ------- Run | Jun Mat Min Exi Min Mat Sto Fac Low Low Fac Fac DSF Fac Res Qua Slots Evolved 14 | . . . . . 4 . 2 . . 2 2 . 2 2 . Power 1 | . . . . . . . 1 . . . . . . . . Propulsion 4 | . . . . . 2 . . . . . 1 . 1 . . Utility 7 | . . . . . 1 . 1 . . 2 1 . . 2 . Weapon 2 | . . . . . 1 . . . . . . . 1 . . Parts Attached 161 | 6 1 3 1 2 7 14 32 8 5 45 4 6 4 15 8 Power 22 | 1 . . 1 . . 2 8 . . 4 1 . 2 3 . Engine 11 | 1 . . 1 . . 1 6 . . 1 1 . . . . Core 3 | . . . . . . 1 2 . . . . . . . . Reactor 8 | . . . . . . . . . . 3 . . 2 3 . Propulsion 59 | 2 . . . 1 3 6 7 3 1 17 2 3 1 7 6 Treads 1 | . . . . . . . . . . 1 . . . . . Leg 41 | 2 . . . 1 2 5 7 3 1 16 . . 1 1 2 Wheel 4 | . . . . . 1 1 . . . . . . . . 2 Hover 6 | . . . . . . . . . . . 1 . . 4 1 Flight 7 | . . . . . . . . . . . 1 3 . 2 1 Utility 34 | 1 1 . . . 1 1 10 2 3 9 1 2 . 2 1 Device 18 | . . . . . 1 . 7 . 2 6 1 . . 1 . Storage 4 | 1 . . . . . . 2 . . . . . . 1 . Processor 1 | . . . . . . . . . 1 . . . . . . Hackware 2 | . 1 . . . . . . . . 1 . . . . . Protection 8 | . . . . . . 1 1 2 . 2 . 2 . . . Artifact 1 | . . . . . . . . . . . . . . . 1 Weapon 46 | 2 . 3 . 1 3 5 7 3 1 15 . 1 1 3 1 Energy Gun 8 | 2 . 1 . . 1 1 . . . . . 1 . 2 . Energy Cannon 2 | . . . . . . . 1 . . . . . . 1 . Ballistic Gun 19 | . . 1 . . . . 5 1 1 11 . . . . . Ballistic Cannon 1 | . . . . . . . . . . 1 . . . . . Launcher 8 | . . 1 . 1 1 4 . 1 . . . . . . . Special Weapon 3 | . . . . . 1 . . . . 1 . . 1 . . Impact Weapon 4 | . . . . . . . 1 1 . 2 . . . . . Slashing Weapon 1 | . . . . . . . . . . . . . . . 1 Piercing Weapon . | . . . . . . . . . . . . . . . . Special Melee Weapon . | . . . . . . . . . . . . . . . . Unidentified Prototypes 7 | . . . . . . 1 1 1 . 2 . . . . 2 Parts Lost 70 | . . 1 . . 4 7 2 2 1 25 . 6 . 15 7 Power 6 | . . . . . . 1 . . . 2 . 1 . 2 . Propulsion 32 | . . . . . . 4 . 2 . 10 . 3 . 8 5 Utility 16 | . . . . . . 1 2 . . 8 . 2 . 2 1 Weapon 16 | . . 1 . . 4 1 . . 1 5 . . . 3 1 Highest Loss Streak 18 | . . 1 . . 4 5 1 2 1 18 . 6 . 12 6 To Critical Strikes 2 | . . . . . . 1 . 1 . . . . . . . Average Slot Usage (%) 80 | . 86 100 100 100 97 76 99 100 96 88 19 24 5 41 21 Engine 8 | . 14 14 14 14 9 6 12 15 15 2 3 3 . . . Reactor 1 | . . . . . . . . . . 8 . . 2 3 . Leg 23 | . 28 28 28 28 28 25 30 30 30 23 . . 2 1 5 Device 11 | . . . . . 9 9 19 15 10 22 3 . . 1 . Storage 6 | . 14 14 14 14 9 9 7 7 7 5 . . . 2 2 Hackware 2 | . 1 14 14 14 9 6 . . . . 5 5 . . . Protection 3 | . . . . . . 1 2 7 7 5 . 2 . 6 . Energy Gun 2 | . 28 17 14 . 7 3 . . . . . . . 11 . Ballistic Gun 13 | . . 10 14 14 7 . 21 22 19 16 . . . . . Launcher 1 | . . . . 14 8 9 . . . . . . . . . Naked Turns 470 | . . . . . . . . . . 78 . 1 345 37 9 Heaviest Build 86 | 14 14 14 14 15 18 32 63 68 70 86 10 14 12 48 5 Greatest Support 78 | 20 20 20 20 20 43 48 65 67 67 78 13 30 25 72 16 Greatest Overweight (x) 3 | 1 . . . . . 3 . 1 1 3 3 1 . 2 1 Average Overweight (x) . | . . . . . . . . . . . . . . . . Largest Inventory Capacity 15 | 8 8 8 8 8 8 8 15 15 15 15 5 5 5 5 5 Average Capacity 10 | 6 8 8 8 8 8 8 10 15 15 14 5 5 5 5 5 Most Carried 15 | 2 4 6 7 8 7 8 15 15 15 15 5 5 5 5 5 Average Carried 8 | 1 3 4 6 7 3 3 9 14 14 13 3 4 4 4 3 Final Capacity 15 | 8 8 8 8 8 8 8 15 15 15 5 5 5 5 5 5 Final Carried 15 | 2 4 6 6 8 3 8 15 15 15 3 5 4 5 5 3 Class Distribution -------------------- 39% | Mutant 23% | Tank 17% | Skirmisher 7% | Scavenger-Mutant 5% | Commander-Skirmisher 4% | Scavenger-Skirmisher Dominant Class ---------------- Mutant | -10/Materials Mutant | -10/Mines Mutant | -10/Exiles Mutant | -9/Mines Scavenger-Mutant | -8/Materials Scavenger-Mutant | -8/Storage Skirmisher | -7/Factory Tank | -7/Lower Caves Tank | -7/Lower Caves Tank | -6/Factory Mutant | -5/Factory Mutant | -5/DSF Mutant | -4/Factory Mutant | -3/Research Mutant | -3/Quarantine Resources | -11 -10 -10 -10 -9 -8 -8 -7 -7 -7 -6 -5 -5 -4 -3 -3 ----------- Run | Jun Mat Min Exi Min Mat Sto Fac Low Low Fac Fac DSF Fac Res Qua Matter Collected 3205 | 260 160 78 . 59 29 190 843 511 131 784 . . . 129 31 Remotely . | . . . . . . . . . . . . . . . . Salvage Created 3262 | . 263 171 . 83 60 67 905 510 90 911 . . . 171 31 Parts 176 | . 14 8 . 6 3 4 52 22 7 41 . . . 16 3 Haulers Intercepted 2 | . . . . . . . 1 . . 1 . . . . . Recyclers Shooed 5 | . . 1 . . 1 . . . . 3 . . . . . Parts Field Recycled . | . . . . . . . . . . . . . . . . Retrieved Matter . | . . . . . . . . . . . . . . . . Parts Self-Destructed 31 | . . . . . . . . 22 9 . . . . . . Prevented . | . . . . . . . . . . . . . . . . Kills | -11 -10 -10 -10 -9 -8 -8 -7 -7 -7 -6 -5 -5 -4 -3 -3 ------- Run | Jun Mat Min Exi Min Mat Sto Fac Low Low Fac Fac DSF Fac Res Qua Combat Hostiles Destroyed 61 | . 5 4 . 3 3 3 15 12 2 11 . . . 3 . Guns 53 | . 5 4 . . . 2 15 12 2 11 . . . 2 . Cannons 1 | . . . . . . . . . . . . . . 1 . AOE 7 | . . . . 3 3 1 . . . . . . . . . Classes Destroyed 15 | . 2 2 . . 1 2 4 . 1 3 . . . . . Worker 4 | . . 1 . . 1 . 2 . . . . . . . . Builder 2 | . . . . . . . . . . 1 . . . 1 . Tunneler 1 | . . . . . . . . . . 1 . . . . . Hauler 2 | . . . . . . . 1 . . 1 . . . . . Recycler 4 | . . . . . . . 1 . . 3 . . . . . Operator 1 | . 1 . . . . . . . . . . . . . . Watcher 3 | . . . . . . . 2 . . . . . . . 1 Swarmer 14 | . . . . . . 2 3 3 1 4 . . . 1 . Grunt 28 | . 5 3 . 3 2 . 5 7 . 3 . . . . . Duelist 2 | . . . . . 1 . . 1 . . . . . . . Sentry 7 | . . . . . . 1 5 1 . . . . . . . Hunter 2 | . . . . . . . . . . 2 . . . . . Programmer 6 | . . . . . . . 2 . . 2 . . . 2 . Assembled 1 | . . 1 . . . . . . . . . . . . . Mutant 1 | . . . . . . . . . 1 . . . . . . Best Kill Streak 7 | . 4 3 . 3 4 2 4 7 1 4 . . . 2 1 Combat Bots Only 7 | . 4 2 . 3 3 2 3 7 1 3 . . . 2 . Max Kills in Single Turn 2 | . 1 1 . 2 2 1 2 2 1 1 . . . 1 1 Gunslinging 1 | . . . . . . . . 1 . . . . . . . Exploded 2 | . . . . 2 1 1 . . . . . . . . . Melee . | . . . . . . . . . . . . . . . . Uniques/NPCs Destroyed . | . . . . . . . . . . . . . . . . Combat | -11 -10 -10 -10 -9 -8 -8 -7 -7 -7 -6 -5 -5 -4 -3 -3 -------- Run | Jun Mat Min Exi Min Mat Sto Fac Low Low Fac Fac DSF Fac Res Qua Damage Taken 10627 | . 110 213 . 11 457 327 794 932 212 3383 . 627 142 2138 1281 Core 2392 | . . 59 . . 112 60 83 98 . 446 . 84 142 623 685 Absorbed by Shields 1137 | . . . . . . . 232 276 28 516 . 85 . . . Core Remaining (%) 77 | 100 . . . 76 . 68 . . 74 47 . 91 87 . . Volleys Fired 205 | . 11 16 . 3 6 18 46 33 5 52 . 2 . 13 . Largest 3 | . 2 2 . 1 1 1 3 3 3 3 . 1 . 2 . Hottest 163 | . 80 80 . 30 30 56 81 84 84 84 . 75 . 163 . Shots Fired 485 | . 22 32 . 3 6 18 130 99 15 136 . 2 . 22 . Gun 472 | . 22 31 . . . 16 130 99 15 136 . 2 . 21 . Cannon 1 | . . . . . . . . . . . . . . 1 . Launcher 12 | . . 1 . 3 6 2 . . . . . . . . . Special . | . . . . . . . . . . . . . . . . Kinetic 395 | . . 15 . . . . 130 99 15 136 . . . . . Thermal 38 | . . . . . . 16 . . . . . 2 . 20 . Explosive 12 | . . 1 . 3 6 2 . . . . . . . . . Electromagnetic 40 | . 22 16 . . . . . . . . . . . 2 . Robot Hit Streak 12 | . 12 4 . 2 5 9 9 5 5 9 . 3 . 8 . Robot Miss Streak 10 | . 1 5 . 1 1 2 10 3 2 7 . 1 . 1 . Penetration Max 1 | . . . . . . . 1 . 1 1 . . . . . Secondary Targets 8 | . . . . . . . 2 2 1 3 . . . . . Max Gunslinging Chain 1 | . . . . . . . 1 1 1 1 . . . . . Shots Hit Robots 322 | . 18 15 . 2 5 12 83 60 7 100 . 1 . 18 1 Core Hits 189 | . 11 7 . 4 12 4 44 18 3 75 . 1 . 9 1 Critical Kills 7 | . . . . . . . 3 2 1 1 . . . . . Critical Parts Destroyed 5 | . . . . . . . 3 1 . 1 . . . . . Critical Strikes 13 | . . . . . . 1 6 3 1 2 . . . . . Burn 1 | . . . . . . 1 . . . . . . . . . Destroy 12 | . . . . . . . 6 3 1 2 . . . . . Melee Attacks 11 | . . . . . . . 1 1 . 3 . . . . 6 Impact 5 | . . . . . . . 1 1 . 3 . . . . . Slashing 6 | . . . . . . . . . . . . . . . 6 Piercing . | . . . . . . . . . . . . . . . . Sneak Attacks . | . . . . . . . . . . . . . . . . Combat Hostiles . | . . . . . . . . . . . . . . . . Follow-up Attacks . | . . . . . . . . . . . . . . . . Damage Inflicted 7203 | . 222 204 . 189 543 210 1700 1130 189 2097 . 23 . 628 68 Guns 6043 | . 222 195 . . . 141 1700 1130 189 2079 . 23 . 364 . Cannons 40 | . . . . . . . . . . . . . . 40 . Explosions 994 | . . 7 . 189 534 40 . . . . . . . 224 . Melee 68 | . . . . . . . . . . . . . . . 68 Ramming 58 | . . 2 . . 9 29 . . . 18 . . . . . Kinetic 5166 | . . 68 . . . . 1700 1130 189 2079 . . . . . Thermal 543 | . . . . . . 141 . . . . . 23 . 379 . Explosive 994 | . . 7 . 189 534 40 . . . . . . . 224 . Electromagnetic 374 | . 222 127 . . . . . . . . . . . 25 . Impact . | . . . . . . . . . . . . . . . . Slashing 68 | . . . . . . . . . . . . . . . 68 Piercing . | . . . . . . . . . . . . . . . . Highest Corruption 15 | . . . . . . . 1 1 1 6 . 2 . 4 15 Average Corruption 2 | . . . . . . . 1 1 1 3 . 2 . 3 6 Corruption Purged . | . . . . . . . . . . . . . . . . Corruption Blocked . | . . . . . . . . . . . . . . . . Effects 41 | . . . . . . . 4 7 6 6 . . . 11 7 Message Errors 15 | . . . . . . . 2 1 1 1 . . . 7 3 Matter Fused 4 | . . . . . . . 1 . 1 1 . . . . 1 Heat Flow Errors 2 | . . . . . . . . . 1 . . . . 1 . Energy Discharges 3 | . . . . . . . . 1 . 1 . . . . 1 Parts Rejected 2 | . . . . . . . . . . 1 . . . 1 . Data Loss (minor) 9 | . . . . . . . 1 3 2 2 . . . . 1 Misfires 2 | . . . . . . . . 1 . . . . . 1 . Alerts 1 | . . . . . . . . . 1 . . . . . . Misdirections 1 | . . . . . . . . . . . . . . . 1 Weapon Failures 2 | . . . . . . . . 1 . . . . . 1 . Overload Shots . | . . . . . . . . . . . . . . . . Overflow Damage 5 | . . . . . . 5 . . . . . . . . . Projectiles . | . . . . . . . . . . . . . . . . Explosions 5 | . . . . . . 5 . . . . . . . . . Melee . | . . . . . . . . . . . . . . . . Knockbacks 1 | . . . . . . . . . . 1 . . . . . Impact 1 | . . . . . . . . . . 1 . . . . . Kinetic . | . . . . . . . . . . . . . . . . Secondary . | . . . . . . . . . . . . . . . . Self-Inflicted Damage 186 | . . 39 . . 36 28 . . . . . . . 83 . Shots 6 | . . 1 . . 2 2 . . . . . . . 1 . Rammed 4 | . . . . . . 4 . . . . . . . . . Targets Rammed 16 | . . 2 . . 1 9 1 . . 3 . . . . . Kicked 12 | . . 2 . . 1 5 1 . . 3 . . . . . Crushed . | . . . . . . . . . . . . . . . . Highest Temperature 256 | . 196 30 . 1 4 . . 256 96 78 . . . 101 . Average Temperature 43 | . 91 14 . 1 4 . . 87 43 24 . . . 22 . Received Heat Transfer 1565 | . 63 24 . 6 216 63 249 261 54 428 . . 18 162 21 Siege Activations . | . . . . . . . . . . . . . . . . Robots Corrupted . | . . . . . . . . . . . . . . . . Combat Hostiles . | . . . . . . . . . . . . . . . . Parts Fried . | . . . . . . . . . . . . . . . . Impact Corruptions . | . . . . . . . . . . . . . . . . Robots Melted . | . . . . . . . . . . . . . . . . Combat Hostiles . | . . . . . . . . . . . . . . . . Parts Melted 5 | . . 1 . . . 1 . . . . . . . 3 . Heat Transferred 1073 | . . . . . . 444 . . . . . 37 . 592 . Parts Sabotaged . | . . . . . . . . . . . . . . . . Parts Stolen . | . . . . . . . . . . . . . . . . Parts Stripped . | . . . . . . . . . . . . . . . . Power Chain Reactions . | . . . . . . . . . . . . . . . . Missiles Intercepted . | . . . . . . . . . . . . . . . . Alert | -11 -10 -10 -10 -9 -8 -8 -7 -7 -7 -6 -5 -5 -4 -3 -3 ------- Run | Jun Mat Min Exi Min Mat Sto Fac Low Low Fac Fac DSF Fac Res Qua Peak Influence 1708 | . 165 139 . 86 167 223 215 . . 151 77 58 45 370 1708 Initial 132 | . . 64 . . 33 53 100 . . . 73 53 4 23 132 Average 145 | . 56 106 . 84 72 82 97 . . 82 73 47 11 112 1631 Maximum Alert Level 5 | . . . . . . 1 1 . . . . . . 1 5 Low Security (%) 91 | 100 100 100 . 100 100 89 92 . . 100 100 100 100 80 . Level 1 4 | . . . . . . 10 7 . . . . . . 19 . Level 2 . | . . . . . . . . . . . . . . . . Level 3 . | . . . . . . . . . . . . . . . . Level 4 . | . . . . . . . . . . . . . . . . Level 5 . | . . . . . . . . . . . . . . . . High Security . | . . . . . . . . . . . . . . . . Max Security 4 | . . . . . . . . . . . . . . . 99 Squads Dispatched 36 | . 2 . . . 4 1 7 . . 4 . 1 1 3 13 Investigation 9 | . 1 . . . 1 1 3 . . 1 . . . 2 . Extermination 4 | . . . . . . . 2 . . 1 . . 1 . . Reinforcement 10 | . 1 . . . 3 . 2 . . 2 . 1 . 1 . Assault 13 | . . . . . . . . . . . . . . . 13 Garrison . | . . . . . . . . . . . . . . . . Intercept . | . . . . . . . . . . . . . . . . Searches Triggered . | . . . . . . . . . . . . . . . . Construction Impeded . | . . . . . . . . . . . . . . . . Haulers Reinforced . | . . . . . . . . . . . . . . . . Active Scanning Responses . | . . . . . . . . . . . . . . . . Cargo Convoy Interrupts . | . . . . . . . . . . . . . . . . Stealth | -11 -10 -10 -10 -9 -8 -8 -7 -7 -7 -6 -5 -5 -4 -3 -3 --------- Run | Jun Mat Min Exi Min Mat Sto Fac Low Low Fac Fac DSF Fac Res Qua Distress Signals 17 | . . 1 . . 1 5 4 . . 5 . . . 1 . Communications Jammed . | . . . . . . . . . . . . . . . . Distress Signals . | . . . . . . . . . . . . . . . . Times Spotted 214 | . 7 7 . 3 12 8 25 16 10 45 . 5 4 38 34 Peak Tracking Total 29 | . 3 3 . 3 7 4 5 7 6 11 . 5 3 23 29 Tactical Retreats 28 | . . 1 . . . 3 3 2 2 8 . 1 1 5 2 Traps | -11 -10 -10 -10 -9 -8 -8 -7 -7 -7 -6 -5 -5 -4 -3 -3 ------- Run | Jun Mat Min Exi Min Mat Sto Fac Low Low Fac Fac DSF Fac Res Qua Traps Triggered 10 | . . . . . . . 1 . . 1 . 2 3 2 1 Indirectly . | . . . . . . . . . . . . . . . . Trap Hack Attempts . | . . . . . . . . . . . . . . . . Triggered . | . . . . . . . . . . . . . . . . Disarmed . | . . . . . . . . . . . . . . . . Reprogrammed . | . . . . . . . . . . . . . . . . Reused . | . . . . . . . . . . . . . . . . Traps Extracted . | . . . . . . . . . . . . . . . . Installed . | . . . . . . . . . . . . . . . . Triggered . | . . . . . . . . . . . . . . . . Machines | -11 -10 -10 -10 -9 -8 -8 -7 -7 -7 -6 -5 -5 -4 -3 -3 ---------- Run | Jun Mat Min Exi Min Mat Sto Fac Low Low Fac Fac DSF Fac Res Qua Machines Disabled 9 | . . . . . . . 4 1 . 2 . . . 1 1 Max in Single Turn 1 | . . . . . . . 1 1 . 1 . . . 1 1 Garrison Access 2 | . . . . . . . 1 . . . . . 1 . . Machines Repaired . | . . . . . . . . . . . . . . . . Machines Sabotaged . | . . . . . . . . . . . . . . . . Overloaded Fab Kills . | . . . . . . . . . . . . . . . . Hacking | -11 -10 -10 -10 -9 -8 -8 -7 -7 -7 -6 -5 -5 -4 -3 -3 --------- Run | Jun Mat Min Exi Min Mat Sto Fac Low Low Fac Fac DSF Fac Res Qua Machines Accessed 33 | . 1 . . . 2 3 11 1 2 4 1 . 4 4 . Terminals 19 | . 1 . . . 2 3 5 . . 3 1 . 2 2 . Fabricators 4 | . . . . . . . 3 . . 1 . . . . . Repair Stations 1 | . . . . . . . . . . . . . . 1 . Recycling Units 4 | . . . . . . . 2 . . . . . 1 1 . Scanalyzers . | . . . . . . . . . . . . . . . . Garrison Access 2 | . . . . . . . 1 . . . . . 1 . . Total Hacks 78 | . 5 . . . 7 7 23 1 7 8 1 . 11 8 . Successful 35 | . 1 . . . 5 1 11 1 7 3 1 . 3 2 . Failed 43 | . 4 . . . 2 6 12 . . 5 . . 8 6 . Catastrophic 10 | . 2 . . . . 2 2 . . 2 . . 1 1 . Database Lockouts . | . . . . . . . . . . . . . . . . Manual 24 | . 1 . 1 . 8 . 8 . . 3 . . 3 . . Terminals 50 | . 5 . . . 7 7 12 . . 6 1 . 7 5 . Fabricators 8 | . . . . . . . 6 . . 2 . . . . . Repair Stations 1 | . . . . . . . . . . . . . . 1 . Recycling Units 9 | . . . . . . . 4 . . . . . 3 2 . Scanalyzers . | . . . . . . . . . . . . . . . . Garrison Access 2 | . . . . . . . 1 . . . . . 1 . . Terminal Hacks 20 | . . . . . 3 1 3 1 7 1 1 . 2 1 . Record 6 | . . . . . . . . . 6 . . . . . . Part Schematic 1 | . . . . . 1 . . . . . . . . . . Robot Analysis 1 | . . . . . 1 . . . . . . . . . . Open Door 4 | . . . . . . 1 . 1 1 . . . . 1 . Open DSF 1 | . . . . . . . . . . . 1 . . . . Level Access Points 1 | . . . . . . . . . . . . . 1 . . Branch Access Points 1 | . . . . . . . 1 . . . . . . . . Terminal Index 1 | . . . . . 1 . . . . . . . . . . Alert Level 3 | . . . . . . . 1 . . 1 . . 1 . . Unreport Threat 1 | . . . . . . . 1 . . . . . . . . Fabricator Hacks 5 | . . . . . . . 3 . . 2 . . . . . Network Status 2 | . . . . . . . 1 . . 1 . . . . . Load Schematic 1 | . . . . . . . 1 . . . . . . . . Build 2 | . . . . . . . 1 . . 1 . . . . . Repair Station Hacks 1 | . . . . . . . . . . . . . . 1 . Refit 1 | . . . . . . . . . . . . . . 1 . Recycling Unit Hacks 4 | . . . . . . . 4 . . . . . . . . Process 1 | . . . . . . . 1 . . . . . . . . Report Inventory 2 | . . . . . . . 2 . . . . . . . . Retrieve Matter 1 | . . . . . . . 1 . . . . . . . . Scanalyzer . | . . . . . . . . . . . . . . . . Garrison Access Hacks 2 | . . . . . . . 1 . . . . . 1 . . Seal Access 2 | . . . . . . . 1 . . . . . 1 . . Unauthorized Hacks 3 | . 1 . . . 2 . . . . . . . . . . Terminals 3 | . 1 . . . 2 . . . . . . . . . . Assimilate 2 | . . . . . 2 . . . . . . . . . . Botnet 1 | . 1 . . . . . . . . . . . . . . Fabricators . | . . . . . . . . . . . . . . . . Repair Stations . | . . . . . . . . . . . . . . . . Recycling Units . | . . . . . . . . . . . . . . . . Scanalyzers . | . . . . . . . . . . . . . . . . Garrison Access . | . . . . . . . . . . . . . . . . Data Cores Recovered 1 | . 1 . . . . . . . . . . . . . . Used 1 | . 1 . . . . . . . . . . . . . . Hacking Detections 23 | . 1 . . . 2 2 8 . . 3 . . 3 4 . Full Trace Events 9 | . 1 . . . 2 1 3 . . 1 . . . 1 . Feedback Events . | . . . . . . . . . . . . . . . . Feedback Blocked . | . . . . . . . . . . . . . . . . Robot Schematics Acquired . | . . . . . . . . . . . . . . . . Robots Built . | . . . . . . . . . . . . . . . . Authchips . | . . . . . . . . . . . . . . . . Time . | . . . . . . . . . . . . . . . . Total Robot Build Rating . | . . . . . . . . . . . . . . . . Part Schematics Acquired 1 | . . . . . 1 . . . . . . . . . . Parts Built 3 | . . . . . . . 1 . . 2 . . . . . Authchips . | . . . . . . . . . . . . . . . . Time 179 | . . . . . . . 51 . . 128 . . . . . Total Part Build Rating 17 | . . . . . . . 1 . . 16 . . . . . Parts Repaired . | . . . . . . . . . . . . . . . . Time . | . . . . . . . . . . . . . . . . Parts Recycled . | . . . . . . . . . . . . . . . . Recycled Matter 25 | . . . . . . . 25 . . . . . . . . Retrieved Matter 25 | . . . . . . . 25 . . . . . . . . Retrieved Components . | . . . . . . . . . . . . . . . . Parts Scanalyzed . | . . . . . . . . . . . . . . . . Part Schematics Acquired . | . . . . . . . . . . . . . . . . Parts Damaged . | . . . . . . . . . . . . . . . . Bothacking | -11 -10 -10 -10 -9 -8 -8 -7 -7 -7 -6 -5 -5 -4 -3 -3 ------------ Run | Jun Mat Min Exi Min Mat Sto Fac Low Low Fac Fac DSF Fac Res Qua Used RIF Installer . | . . . . . . . . . . . . . . . . Robots Hacked . | . . . . . . . . . . . . . . . . Non-combat . | . . . . . . . . . . . . . . . . Combat . | . . . . . . . . . . . . . . . . Robot Hacks Applied . | . . . . . . . . . . . . . . . . Relay Couplers Released . | . . . . . . . . . . . . . . . . Fabnet Peak Effective % . | . . . . . . . . . . . . . . . . Robots Rewired 3 | . . . . . . 1 . 2 . . . . . . . Allies Hacked 1 | . . . . . . . 1 . . . . . . . . Hacks Repelled . | . . . . . . . . . . . . . . . . Allies | -11 -10 -10 -10 -9 -8 -8 -7 -7 -7 -6 -5 -5 -4 -3 -3 -------- Run | Jun Mat Min Exi Min Mat Sto Fac Low Low Fac Fac DSF Fac Res Qua Total Allies 14 | . . 1 . . 1 10 . 2 . . . . . . . Largest Group 10 | . . 1 . . 1 10 9 2 2 . . . . . . Highest-Rated Group 173 | . . 31 . . 10 173 157 32 32 . . . . . . Highest-Rated Ally 31 | . . 31 . . 10 29 29 16 16 . . . . . . Total Orders . | . . . . . . . . . . . . . . . . Ally Attacks 96 | . . 3 . . . 31 57 . 5 . . . . . . Total Damage 1309 | . . 43 . . . 452 766 . 48 . . . . . . Kills 11 | . . 1 . . . 5 4 . 1 . . . . . . Allies Corrupted 1 | . . . . . . . 1 . . . . . . . . Allies Melted . | . . . . . . . . . . . . . . . . Intel | -11 -10 -10 -10 -9 -8 -8 -7 -7 -7 -6 -5 -5 -4 -3 -3 ------- Run | Jun Mat Min Exi Min Mat Sto Fac Low Low Fac Fac DSF Fac Res Qua Robot Analysis Total 1 | . . . . . 1 . . . . . . . . . . Derelict Logs Recovered 4 | . . . . 1 . . . 2 1 . . . . . . Drone Launches . | . . . . . . . . . . . . . . . . Drone Recoveries . | . . . . . . . . . . . . . . . . Exploration | -11 -10 -10 -10 -9 -8 -8 -7 -7 -7 -6 -5 -5 -4 -3 -3 ------------- Run | Jun Mat Min Exi Min Mat Sto Fac Low Low Fac Fac DSF Fac Res Qua Turns Passed 8461 | 67 218 274 274 197 174 698 2193 780 751 1316 77 42 702 421 277 Spaces Moved 5914 | 49 149 157 228 153 104 404 1270 537 576 638 86 53 583 524 403 Core 1022 | 6 . . . . . 2 . . . 167 13 2 296 177 359 Treads . | . . . . . . . . . . . . . . . . Legs 4292 | 43 149 157 228 153 104 317 1270 537 576 471 . . 287 . . Wheels 85 | . . . . . . 85 . . . . . . . . . Hover 348 | . . . . . . . . . . . 5 . . 343 . Flight 167 | . . . . . . . . . . . 68 51 . 4 44 Fastest Speed 27 | 50 120 120 120 120 120 80 90 115 117 50 40 27 50 37 45 Average Speed 106 | 115 120 120 120 120 120 113 111 117 123 146 65 34 84 60 61 Slowest Speed 330 | 120 120 120 120 120 120 270 115 192 192 330 200 50 120 240 100 Overloaded Moves . | . . . . . . . . . . . . . . . . Propulsion Burnouts . | . . . . . . . . . . . . . . . . Robots Hopped 3 | . . . . . . . . . . . . 1 . 2 . Cave-ins Triggered . | . . . . . . . . . . . . . . . . Exploration Rate (%) 33 | 5 32 29 43 47 17 53 41 74 21 20 2 56 18 24 51 Regions Visited 15 Branch Regions 7 Pre-discovered Areas . | . . . . . . . . . . . . . . . . Known Exits Taken 6 | . . . . . 1 . 1 . 1 1 1 . 1 . . Unknown Exits Taken 8 | 1 1 1 1 1 . 1 . 1 . . . . . 1 . Scrap Searched 10 | . . . . . . . . 8 2 . . . . . . Spaces Dug 12 | . . 5 . . . . 1 . . 3 . . . . 3 Terrain Destroyed 119 | . . 5 . 17 38 19 3 2 1 4 . . . 27 3 Melee 7 | . . . . . . . 1 . . 3 . . . . 3 Projectile 5 | . . . . . . . 2 1 1 1 . . . . . AOE 106 | . . 5 . 17 38 19 . . . . . . . 27 . Terrain Rammed . | . . . . . . . . . . . . . . . . Walls Destroyed . | . . . . . . . . . . . . . . . . Machines Disabled . | . . . . . . . . . . . . . . . . Actions | -11 -10 -10 -10 -9 -8 -8 -7 -7 -7 -6 -5 -5 -4 -3 -3 --------- Run | Jun Mat Min Exi Min Mat Sto Fac Low Low Fac Fac DSF Fac Res Qua Total 7673 | 56 165 209 229 163 147 621 1956 612 609 915 106 72 793 600 420 Wait 1181 | . 3 29 . 1 29 154 543 20 6 142 13 2 197 42 . Move 5894 | 48 148 156 227 152 103 403 1269 536 575 637 85 50 582 520 403 Hop 2 | . . . . . . . . . . . . 1 . 1 . Pick Up 84 | 2 2 3 . 3 . 11 26 4 9 16 1 . 4 2 1 Fast Attach 54 | 6 1 . . . 1 9 5 . 1 5 2 4 3 10 7 Attach 52 | . . 1 1 . 6 2 4 4 2 21 2 2 1 5 1 Detach 17 | . . . 1 . 1 1 . 1 1 2 2 1 2 4 1 Swap 55 | . . 2 . 2 . 3 23 4 2 19 . . . . . Drop 87 | . . . . 2 . 8 38 5 8 15 1 2 4 3 1 Fire 205 | . 11 16 . 3 6 18 46 33 5 52 . 2 . 13 . Melee 11 | . . . . . . . 1 1 . 3 . . . . 6 Ram 4 | . . . . . . 4 . . . . . . . . . Kick 12 | . . 2 . . 1 5 1 . . 3 . . . . . Crush . | . . . . . . . . . . . . . . . . Escape Stasis 8 | . . . . . . . . . . . . 8 . . . Rewire 7 | . . . . . . 3 . 4 . . . . . . . Trap . | . . . . . . . . . . . . . . . . Miscellaneous . | . . . . . . . . . . . . . . . . Route ------- -11/Junkyard -10/Materials -10/Mines -10/Exiles -9/Mines -8/Materials (discovered 2 exits: *Fac / *Sto) -8/Storage -7/Factory (discovered 2 exits: *Low x2) -7/Lower Caves -7/Lower Caves -6/Factory (discovered 3 exits: *Fac x3) -5/Factory -5/DSF -4/Factory (discovered 4 exits: *Res x4) -3/Research (discovered 2 exits: [*Res] / [*Qua]) -3/Quarantine History --------- Turn | Location | Event 11 | -11/Junkyard | Discovered new exit (range 16) 68 | -11/Junkyard | Entered Materials 267 | -10/Materials | Discovered new exit (range 12) 286 | -10/Materials | Entered Mines 308 | -10/Mines | Build established: Mutant 320 | -10/Mines | Met a Derelict bent on vengeance 444 | -10/Mines | Escorted by a lone wolf Derelict 462 | -10/Mines | Excavation squad dispatched 462 | -10/Mines | A large section of the Mines collapsed 555 | -10/Mines | Deemed a non-threat by the Exiles lab entrance 555 | -10/Mines | Discovered new exit (range 5) 560 | -10/Mines | Entered Exiles 560 | -10/Exiles | Accompanied by 1 ally 589 | -10/Exiles | Met 8R-AWN 611 | -10/Exiles | Met EX-HEX 648 | -10/Exiles | Met EX-BIN 665 | -10/Exiles | Aligned with FarCom system 666 | -10/Exiles | Given EX-Vault access code 694 | -10/Exiles | Opened EX-Vault 735 | -10/Exiles | Warned to stay clear of 0b10 Research branches 819 | -10/Exiles | Discovered new exit (range 14) 834 | -10/Exiles | Entered Mines 930 | -9/Mines | Received a Rocket Launcher from a helpful Derelict 1026 | -9/Mines | Discovered new exit (range 5) 1031 | -9/Mines | Entered Materials 1031 | -8/Materials | Evolved 4 slots: Propulsion x2, Utility x1, Weapon x1 1032 | -8/Materials | Identified exit to Storage 1190 | -8/Materials | Discovered new exit (range 8) 1205 | -8/Materials | Entered Storage 1236 | -8/Storage | Lost 4 parts (4w) 1339 | -8/Storage | Build established: Scavenger-Mutant 1717 | -8/Storage | Lost 5 parts (1p3n1u) 1728 | -8/Storage | Assisted by bots powering up and referring to "LRC-V3" 1878 | -8/Storage | Discovered new exit (range 16) 1903 | -8/Storage | Entered Factory 1903 | -7/Factory | Accompanied by 9 allies 1903 | -7/Factory | Evolved 2 slots: Power x1, Utility x1 2057 | -7/Factory | Build established: Commander-Skirmisher 2476 | -7/Factory | Build established: Scavenger-Skirmisher 2794 | -7/Factory | Identified exit to Lower Caves 2803 | -7/Factory | Build established: Skirmisher 3180 | -7/Factory | Fabricated Lrg. Storage Unit (x1) 3731 | -7/Factory | Found Prototype Launcher 4096 | -7/Factory | Entered Lower Caves 4110 | -7/Lower Caves | Learned location of 1 exit from Proximity Caves 4126 | -7/Lower Caves | Learned Factory garrison access intel 4360 | -7/Lower Caves | Build established: Tank 4463 | -7/Lower Caves | Attacked by a delusional Derelict stockpiling Unaware 4513 | -7/Lower Caves | Identified Rocket Array 4647 | -7/Lower Caves | Attracted the attention of an 0b10 outpost 4709 | -7/Lower Caves | Destroyed 7 combat bots 4815 | -7/Lower Caves | Discovered new exit (range 6) 4850 | -7/Lower Caves | Found Prototype Device 4876 | -7/Lower Caves | Entered another Lower Caves area 4876 | -7/Lower Caves | Accompanied by 2 allies 4986 | -7/Lower Caves | Attacked by a faux Warlord 5364 | -7/Lower Caves | Build established: Mutant 5495 | -7/Lower Caves | Identified exit to Factory 5495 | -7/Lower Caves | Learned Armory emergency access door positions 5495 | -7/Lower Caves | Learned Research stockpile data 5495 | -7/Lower Caves | Learned Factory terminal intel 5603 | -7/Lower Caves | Learned location of 1 exit from Proximity Caves 5627 | -7/Lower Caves | Entered Factory 5627 | -6/Factory | Evolved 2 slots: Utility x2 5628 | -6/Factory | Identified exit to Factory 5629 | -6/Factory | Loaded intel: 26 terminal locations 5630 | -6/Factory | Loaded intel: 4 garrison access locations 5738 | -6/Factory | Build established: Tank 5885 | -6/Factory | Fabricated Particle Reactor? 6587 | -6/Factory | Lost 3 parts (1n2u) 6784 | -6/Factory | Spotted B-75 Beast 6795 | -6/Factory | Assembled infested ambush trap array 6833 | -6/Factory | Released all parts (6) 6861 | -6/Factory | Core integrity fell below 50% 6863 | -6/Factory | Lost 18 parts (2p7n5u4w) 6886 | -6/Factory | Identified Heart of Steel 6943 | -6/Factory | Entered another Factory area 6943 | -5/Factory | Evolved 2 slots: Propulsion x1, Utility x1 7011 | -5/Factory | Identified exit to DSF 7020 | -5/Factory | Entered DSF 7042 | -5/DSF | Additional patrols routed to DSF 7046 | -5/DSF | Discovered new exit (range 15) 7062 | -5/DSF | Entered Factory 7062 | -4/Factory | Evolved 2 slots: Propulsion x1, Weapon x1 7077 | -4/Factory | Build established: Mutant 7092 | -4/Factory | Lost 6 parts (1p3n2u) 7287 | -4/Factory | Identified exit to Research 7764 | -4/Factory | Entered Research 7764 | -3/Research | Evolved 2 slots: Utility x2 7898 | -3/Research | Lost 3 parts (2p1n) 8093 | -3/Research | Discovered new exit (range 3) 8162 | -3/Research | Lost 12 parts (7n2u3w) 8182 | -3/Research | Discovered new exit (range 8) 8185 | -3/Research | Entered Quarantine 8186 | -3/Quarantine | Maximum security lockdown engaged 8310 | -3/Quarantine | Found Prototype Slashing Weapon 8310 | -3/Quarantine | Identified Molecular Scythe 8365 | -3/Quarantine | Core integrity fell below 50% 8420 | -3/Quarantine | Found Alien Artifact 8420 | -3/Quarantine | Identified Phase Redirector 8421 | -3/Quarantine | System corruption reached 10% 8436 | -3/Quarantine | Core integrity fell below 20% 8462 | -3/Quarantine | Destroyed by G-67 Veteran with Field Laser Last Messages --------------- 08416_ Suspension Chamber breached. 08420_ Biometal Leg destroyed. 08420_ Acquired Alien Artifact. 08420_ Identified Phase Redirector. 08423_ Com. Wheel destroyed. 08426_ P-80 Master resets P-80 Master, system corruption cleaned. 08426_ Com. Wheel destroyed. 08428_ Molecular Scythe destroyed. 08432_ C-30 ARC bursts open, deploying its payload. 08432_ G-73 Enforcer unfolds itself. 08432_ L-61 Swordsman unfolds itself. 08432_ G-67 Veteran unfolds itself. 08432_ E-15 Imp unfolds itself. 08432_ Myomer Leg destroyed. 08432_ Linear Gravjet destroyed. 08435_ Slug penetrates G-73 Enforcer. 08435_ E-15 Imp destroyed. 08441_ Acquired Impulse Thruster Array. 08450_ MB:BI9DWTOHGY60&NUUSX/EZQ 08462_ Containment Shield disabled. Map ----- +----------------------------------------------------+ | ?????????????????????????????????????????????????? | | ?????????????????????????????????????????????????? | | ?????????????????????????????????????????????????? | | ?????????????????????????????????????????????????? | | ?????????????????????????????????????????????????? | | ?????????????????????????????????????????????????? | | ?????????????????????????????????????????????????? | | ?????????????????????????????????????????????????? | | ?????????????????????????????????????????????????? | | ?????????????????????????????????????????????????? | | ?????????????????????????????????????????????????? | | ?????????????????????????????????????????????????? | | ?????????????????????????????????????????????????? | | ??????????????????????????????????##############?? | | ??????????????????????????????????# #?? | | ??????????????????????????????????# """ """ ### | | ??????????????????????????????????# """" """" "" | | ?????????????????????????????######p"""" """" """ | | ?????????????????????????????# ppp """ """ T" | | ?????????????????????????????# #### """ | | ?????????????????????#########p####l """g """ "" | | ?????????????????????# #C""""C"""" ### | | ?????????????????????# #g"""" """" #?? | | ?????????????????????# ! g #g""" """ |#?? | | ??????????????????#### g # h #?? | | ??????????????????# ; @ s #[ ! #?? | | ??????????????????#### ss######l######### | | ?????????????????????# """" """"s#??# + ! | | ?????????????????????# """ """" #??# # """ | | ?????????????????????# """" """" #### # """ | | ????????????!????????# """"b"""" + + """ | | ????????????"????????# """" """" #### # | | ???????????? ????????# i #??# # [ | | ####?#######+#############+######i#### # | | ?? b #! ""T"" | | ? ^ = # """"" | | ? " !%= ######## | | ??? "%" * #??????? | | ########## ####/#/### ###/###########??????? | | # ## # # #???????????? | | "" # ## "" # # """ #???????????? | | """ / ## " # # """ #???????????? | | "]" # ## """"" # # """ ""#???????????? | | """ # / """"" # # ""#???????????? | | "" # ## # # """ T"#???????????? | | # ## # # """ ""#???????????? | | # ########## # """ ""#???????????? | | ########## # # # ????????????? | | ?????????# # """"" # #??######????????????? | | ?????????# # "!""" # #????????????????????? | +----------------------------------------------------+ Best States ------------- Heat Dissipation 75 Energy Generation 41 Energy Capacity 580 Matter Stores 300 Matter Capacity 300 Sight Range 16 Terrain Scan Range 16 Terrain Scan Density 10 Base Temperature (-) 200 Armor Coverage 225 Weapon Cycling 15 Evasion (%) 64 Kinecelleration 30 Offensive Hacking 10 Item Schematics ----------------- Lrg. Storage Unit | -8/Materials | Hacked Robot Schematics ------------------ None Fabricated ------------ Lrg. Storage Unit | x1 | -7/Factory Particle Reactor | x2 | -6/Factory | Preloaded Alien Tech Used ----------------- Phase Redirector Achievements -------------- Just What I Needed Streaker Challenges ------------ None Game ------ Seed DeepSkeletonStabilizer Manual? 0 Play Time 01:54:44 Cumulative 32.6 hours Start 2023.09.07 @ 22:50:49 End 2023.09.08 @ 00:54:46 Sessions 1 Manual Loads 0 Difficulty Rogue Special Mode None Game No. 23 Rogue 23 Adventurer 0 Explorer 0 Win Type - Total 0 Types 0/0/0/0/0/0/0/0/0 Lore% 18 Gallery% 29 Achievement% 28 Wizard Run 0 Options --------- ASCII 0 Keyboard 1 Movement Numpad Keybinds 0 Fullscreen 1 Font 24/Terminus Map View 76x50 Tactical HUD 1 Map Filters NONE Filters NONE Steam 1 RUN: 7ee91b59-b45f-42dc-951b-a7924ba804f8